[Event "Titled Tuesday Blitz August 08 Early 2023"]
[White "Prokofiev, Valentyn"]
[Black "marik_spb"]
[WhiteFideId "14160161"]
[WhiteElo "2570"]
[BlackElo "2476"]
[Result "0-1"]
[Round "10"]
[TimeControl "180+1"]
[Date "2023.08.08"]
[WhiteClock "0:00:14"]
[BlackClock "0:00:19"]
[Board "96"]

1. Nf3 {[%clk 0:03:00]}  Nf6 {[%clk 0:02:58]} 2. c4 {[%clk 0:03:00]}  g6 {[%clk 0:02:59]} 3. Nc3 {[%clk 0:03:00]}  d5 {[%clk 0:02:56]} 4. cxd5 {[%clk 0:03:01]}  Nxd5 {[%clk 0:02:57]} 5. Qb3 {[%clk 0:03:01]}  Nxc3 {[%clk 0:02:57]} 6. Qxc3 {[%clk 0:03:01]}  f6 {[%clk 0:02:44]} 7. d4 {[%clk 0:02:58]}  Bg7 {[%clk 0:02:41]} 8. e3 {[%clk 0:02:46]}  Be6 {[%clk 0:02:35]} 9. Bd3 {[%clk 0:02:38]}  Nd7 {[%clk 0:02:08]} 10. h4 {[%clk 0:02:33]}  Bf7 {[%clk 0:02:05]} 11. h5 {[%clk 0:02:27]}  gxh5 {[%clk 0:02:03]} 12. Nh4 {[%clk 0:02:28]}  e6 {[%clk 0:01:57]} 13. Qc2 {[%clk 0:02:12]}  f5 {[%clk 0:01:52]} 14. Bd2 {[%clk 0:02:09]}  Rc8 {[%clk 0:01:51]} 15. Rc1 {[%clk 0:01:30]}  c5 {[%clk 0:01:51]} 16. Bb5 {[%clk 0:01:29]}  O-O {[%clk 0:01:37]} 17. d5 {[%clk 0:01:22]}  exd5 {[%clk 0:01:15]} 18. Qxf5 {[%clk 0:01:20]}  Nf6 {[%clk 0:01:12]} 19. Bc3 {[%clk 0:01:07]}  d4 {[%clk 0:01:11]} 20. exd4 {[%clk 0:01:06]}  cxd4 {[%clk 0:01:12]} 21. O-O {[%clk 0:00:56]}  dxc3 {[%clk 0:01:09]} 22. Rcd1 {[%clk 0:00:56]}  Qb6 {[%clk 0:01:05]} 23. bxc3 {[%clk 0:00:51]}  Rc5 {[%clk 0:01:05]} 24. Qc2 {[%clk 0:00:48]}  Qxb5 {[%clk 0:01:03]} 25. Rb1 {[%clk 0:00:48]}  Qc6 {[%clk 0:01:03]} 26. Nf5 {[%clk 0:00:48]}  Re8 {[%clk 0:00:59]} 27. Rfe1 {[%clk 0:00:47]}  Bg6 {[%clk 0:00:53]} 28. Rxe8+ {[%clk 0:00:41]}  Qxe8 {[%clk 0:00:43]} 29. Qb3+ {[%clk 0:00:41]}  Qf7 {[%clk 0:00:35]} 30. Ne7+ {[%clk 0:00:41]}  Kf8 {[%clk 0:00:35]} 31. Nxg6+ {[%clk 0:00:38]}  hxg6 {[%clk 0:00:36]} 32. Qa3 {[%clk 0:00:39]}  Qe7 {[%clk 0:00:35]} 33. Qxa7 {[%clk 0:00:38]}  Rxc3 {[%clk 0:00:29]} 34. g3 {[%clk 0:00:30]}  Rc7 {[%clk 0:00:27]} 35. a4 {[%clk 0:00:25]}  Ng4 {[%clk 0:00:27]} 36. a5 {[%clk 0:00:22]}  Rd7 {[%clk 0:00:26]} 37. Qb8+ {[%clk 0:00:20]}  Kf7 {[%clk 0:00:25]} 38. Qf4+ {[%clk 0:00:20]}  Qf6 {[%clk 0:00:23]} 39. Qc4+ {[%clk 0:00:20]}  Qe6 {[%clk 0:00:20]} 40. Qf4+ {[%clk 0:00:19]}  Kg8 {[%clk 0:00:21]} 41. Rc1 {[%clk 0:00:18]}  Rf7 {[%clk 0:00:19]} 42. Qb8+ {[%clk 0:00:18]}  Kh7 {[%clk 0:00:19]} 43. a6 {[%clk 0:00:14]}  bxa6 {[%clk 0:00:17]} 44. Rf1 {[%clk 0:00:13]}  Bd4 {[%clk 0:00:16]} 45. Kh1 {[%clk 0:00:13]}  Nxf2+ {[%clk 0:00:15]} 46. Rxf2 {[%clk 0:00:11]}  Bxf2 {[%clk 0:00:16]} 47. Kg2 {[%clk 0:00:10]}  Qe4+ {[%clk 0:00:16]} 48. Kh2 {[%clk 0:00:11]}  Bxg3+ {[%clk 0:00:15]} 49. Qxg3 {[%clk 0:00:11]}  Qe2+ {[%clk 0:00:15]} 50. Kh3 {[%clk 0:00:11]}  Rf3 {[%clk 0:00:16]} 51. Qxf3 {[%clk 0:00:11]}  Qxf3+ {[%clk 0:00:16]} 52. Kh2 {[%clk 0:00:12]}  Qg4 {[%clk 0:00:16]} 53. Kh1 {[%clk 0:00:12]}  h4 {[%clk 0:00:17]} 54. Kh2 {[%clk 0:00:13]}  h3 {[%clk 0:00:18]} 55. Kh1 {[%clk 0:00:14]}  Qg2# {[%clk 0:00:19]} 0-1


[Site "https://www.chess.com"]

[Event "Titled Tuesday Blitz August 08 Early 2023"]
[White "favesaul"]
[Black "Santos Flores, Alberto"]
[BlackFideId "3601234"]
[WhiteElo "2474"]
[BlackElo "2559"]
[Result "1-0"]
[Round "10"]
[TimeControl "180+1"]
[Date "2023.08.08"]
[WhiteClock "0:01:46"]
[BlackClock "0:01:29"]
[Board "97"]

1. e4 {[%clk 0:03:00]}  e6 {[%clk 0:02:59]} 2. d4 {[%clk 0:03:00]}  d5 {[%clk 0:02:59]} 3. Nc3 {[%clk 0:03:01]}  Nf6 {[%clk 0:02:59]} 4. Bg5 {[%clk 0:03:00]}  Bb4 {[%clk 0:02:59]} 5. e5 {[%clk 0:03:00]}  h6 {[%clk 0:02:59]} 6. Be3 {[%clk 0:03:00]}  Ne4 {[%clk 0:02:58]} 7. Qg4 {[%clk 0:02:59]}  Kf8 {[%clk 0:02:57]} 8. a3 {[%clk 0:02:54]}  Bxc3+ {[%clk 0:02:45]} 9. bxc3 {[%clk 0:02:55]}  c5 {[%clk 0:02:45]} 10. Bd3 {[%clk 0:02:51]}  cxd4 {[%clk 0:02:35]} 11. cxd4 {[%clk 0:02:50]}  Qa5+ {[%clk 0:02:35]} 12. Kf1 {[%clk 0:02:48]}  Nd2+ {[%clk 0:02:31]} 13. Ke2 {[%clk 0:02:47]}  Nc4 {[%clk 0:02:30]} 14. Nf3 {[%clk 0:02:41]}  Nc6 {[%clk 0:02:27]} 15. h4 {[%clk 0:02:40]}  Nb2 {[%clk 0:02:20]} 16. Bd2 {[%clk 0:02:34]}  Qa4 {[%clk 0:02:13]} 17. h5 {[%clk 0:02:25]}  Nxd3 {[%clk 0:02:11]} 18. cxd3 {[%clk 0:02:25]}  Bd7 {[%clk 0:02:06]} 19. Rh3 {[%clk 0:02:24]}  Na5 {[%clk 0:02:00]} 20. Rg3 {[%clk 0:02:23]}  Rh7 {[%clk 0:01:59]} 21. Nh4 {[%clk 0:02:03]}  Ke7 {[%clk 0:01:54]} 22. Bb4+ {[%clk 0:02:01]}  Ke8 {[%clk 0:01:54]} 23. Rf3 {[%clk 0:01:59]}  Qc2+ {[%clk 0:01:52]} 24. Kf1 {[%clk 0:01:56]}  Nb3 {[%clk 0:01:52]} 25. Qf4 {[%clk 0:01:53]}  Nxa1 {[%clk 0:01:43]} 26. Qxf7+ {[%clk 0:01:52]}  Kd8 {[%clk 0:01:44]} 27. Qe7+ {[%clk 0:01:47]}  Kc7 {[%clk 0:01:29]} 28. Qd6+ {[%clk 0:01:46]} 1-0


[Site "https://www.chess.com"]

[Event "Titled Tuesday Blitz August 08 Early 2023"]
[White "Moral Garcia, Serafin"]
[Black "Herman, Daniel"]
[WhiteFideId "2201925"]
[BlackFideId "30935008"]
[WhiteElo "2543"]
[BlackElo "2415"]
[Result "1-0"]
[Round "10"]
[TimeControl "180+1"]
[Date "2023.08.08"]
[WhiteClock "0:00:19"]
[BlackClock "0:00:02"]
[Board "99"]

1. c4 {[%clk 0:03:00]}  e5 {[%clk 0:02:56]} 2. g3 {[%clk 0:02:59]}  c6 {[%clk 0:02:54]} 3. Nf3 {[%clk 0:02:56]}  e4 {[%clk 0:02:53]} 4. Nd4 {[%clk 0:02:56]}  d5 {[%clk 0:02:49]} 5. cxd5 {[%clk 0:02:56]}  cxd5 {[%clk 0:02:50]} 6. Bg2 {[%clk 0:02:52]}  Bc5 {[%clk 0:02:48]} 7. Nb3 {[%clk 0:02:51]}  Bb6 {[%clk 0:02:47]} 8. O-O {[%clk 0:02:50]}  Nf6 {[%clk 0:02:46]} 9. d3 {[%clk 0:02:50]}  O-O {[%clk 0:02:39]} 10. Nc3 {[%clk 0:02:47]}  Bf5 {[%clk 0:02:35]} 11. dxe4 {[%clk 0:02:46]}  dxe4 {[%clk 0:02:33]} 12. Bg5 {[%clk 0:02:42]}  h6 {[%clk 0:02:29]} 13. Qxd8 {[%clk 0:02:41]}  Bxd8 {[%clk 0:02:27]} 14. Be3 {[%clk 0:02:35]}  Nc6 {[%clk 0:02:26]} 15. h3 {[%clk 0:02:27]}  Ne5 {[%clk 0:02:23]} 16. Nc5 {[%clk 0:02:02]}  Nc4 {[%clk 0:02:16]} 17. Bd4 {[%clk 0:02:02]}  Bb6 {[%clk 0:02:12]} 18. b3 {[%clk 0:01:58]}  Rad8 {[%clk 0:02:07]} 19. Bxf6 {[%clk 0:01:48]}  gxf6 {[%clk 0:02:06]} 20. N5xe4 {[%clk 0:01:47]}  Nd2 {[%clk 0:01:58]} 21. Rfd1 {[%clk 0:01:43]}  Nxe4 {[%clk 0:01:53]} 22. Nxe4 {[%clk 0:01:42]}  Kg7 {[%clk 0:01:51]} 23. g4 {[%clk 0:01:36]}  Bg6 {[%clk 0:01:34]} 24. Ng3 {[%clk 0:01:34]}  Bd4 {[%clk 0:01:29]} 25. Rac1 {[%clk 0:01:28]}  a5 {[%clk 0:01:00]} 26. Be4 {[%clk 0:01:18]}  Be5 {[%clk 0:00:55]} 27. Bxb7 {[%clk 0:01:01]}  Bxg3 {[%clk 0:00:54]} 28. fxg3 {[%clk 0:01:02]}  Rfe8 {[%clk 0:00:50]} 29. Bf3 {[%clk 0:01:00]}  Kf8 {[%clk 0:00:43]} 30. Kf2 {[%clk 0:01:00]}  Rc8 {[%clk 0:00:33]} 31. Rxc8 {[%clk 0:00:54]}  Rxc8 {[%clk 0:00:33]} 32. Rd5 {[%clk 0:00:54]}  a4 {[%clk 0:00:32]} 33. bxa4 {[%clk 0:00:44]}  Rc2 {[%clk 0:00:32]} 34. a5 {[%clk 0:00:44]}  Rxa2 {[%clk 0:00:32]} 35. h4 {[%clk 0:00:44]}  Kg7 {[%clk 0:00:23]} 36. h5 {[%clk 0:00:38]}  Bh7 {[%clk 0:00:23]} 37. Ke3 {[%clk 0:00:31]}  Kf8 {[%clk 0:00:22]} 38. Kd4 {[%clk 0:00:30]}  Ra4+ {[%clk 0:00:19]} 39. Kc3 {[%clk 0:00:27]}  Ke7 {[%clk 0:00:19]} 40. Kb3 {[%clk 0:00:25]}  Ra1 {[%clk 0:00:19]} 41. Kb4 {[%clk 0:00:25]}  Ke6 {[%clk 0:00:16]} 42. Rb5 {[%clk 0:00:22]}  Bc2 {[%clk 0:00:14]} 43. Rb6+ {[%clk 0:00:21]}  Ke7 {[%clk 0:00:12]} 44. a6 {[%clk 0:00:21]}  Bd1 {[%clk 0:00:10]} 45. Rb7+ {[%clk 0:00:19]}  Kf8 {[%clk 0:00:10]} 46. a7 {[%clk 0:00:19]}  Kg7 {[%clk 0:00:11]} 47. Kc5 {[%clk 0:00:19]}  Rc1+ {[%clk 0:00:05]} 48. Kb6 {[%clk 0:00:19]}  Rb1+ {[%clk 0:00:05]} 49. Kc7 {[%clk 0:00:19]}  Rc1+ {[%clk 0:00:02]} 50. Kb8 {[%clk 0:00:19]} 1-0


[Site "https://www.chess.com"]

[Event "Titled Tuesday Blitz August 08 Early 2023"]
[White "Souleidis, Georgios"]
[Black "Vifleemskaia, Svetlana"]
[WhiteFideId "4206827"]
[BlackFideId "4129490"]
[WhiteElo "2540"]
[BlackElo "2394"]
[Result "1-0"]
[Round "10"]
[TimeControl "180+1"]
[Date "2023.08.08"]
[WhiteClock "0:00:54"]
[BlackClock "0:00:03"]
[Board "100"]

1. e4 {[%clk 0:03:00]}  e5 {[%clk 0:02:59]} 2. Nc3 {[%clk 0:02:56]}  Nf6 {[%clk 0:02:59]} 3. d4 {[%clk 0:02:56]}  exd4 {[%clk 0:02:54]} 4. Qxd4 {[%clk 0:02:57]}  Nc6 {[%clk 0:02:54]} 5. Qd3 {[%clk 0:02:57]}  Bb4 {[%clk 0:02:51]} 6. Bd2 {[%clk 0:02:57]}  d6 {[%clk 0:02:47]} 7. O-O-O {[%clk 0:02:57]}  Be6 {[%clk 0:02:46]} 8. Kb1 {[%clk 0:02:53]}  Ne5 {[%clk 0:02:44]} 9. Qg3 {[%clk 0:02:51]}  Qe7 {[%clk 0:02:24]} 10. f4 {[%clk 0:02:26]}  Bxc3 {[%clk 0:02:21]} 11. Bxc3 {[%clk 0:02:16]}  Nxe4 {[%clk 0:02:12]} 12. Qxg7 {[%clk 0:02:16]}  Nxc3+ {[%clk 0:02:11]} 13. bxc3 {[%clk 0:02:17]}  Ng6 {[%clk 0:02:09]} 14. Qd4 {[%clk 0:02:03]}  c5 {[%clk 0:02:02]} 15. Bb5+ {[%clk 0:01:53]}  Bd7 {[%clk 0:02:00]} 16. Bxd7+ {[%clk 0:01:48]}  Qxd7 {[%clk 0:01:43]} 17. Re1+ {[%clk 0:01:47]}  Kd8 {[%clk 0:01:42]} 18. Qf6+ {[%clk 0:01:46]}  Kc7 {[%clk 0:01:42]} 19. Nf3 {[%clk 0:01:45]}  Rhe8 {[%clk 0:01:34]} 20. Ng5 {[%clk 0:01:43]}  Rxe1+ {[%clk 0:01:16]} 21. Rxe1 {[%clk 0:01:44]}  Re8 {[%clk 0:01:16]} 22. Rd1 {[%clk 0:01:41]}  Qe7 {[%clk 0:01:08]} 23. Qxf7 {[%clk 0:01:31]}  Qxf7 {[%clk 0:01:06]} 24. Nxf7 {[%clk 0:01:32]}  Nxf4 {[%clk 0:01:06]} 25. Nxd6 {[%clk 0:01:32]}  Re2 {[%clk 0:01:01]} 26. g3 {[%clk 0:01:27]}  Ng2 {[%clk 0:00:45]} 27. Nf5 {[%clk 0:01:05]}  Ne3 {[%clk 0:00:36]} 28. Nxe3 {[%clk 0:01:01]}  Rxe3 {[%clk 0:00:36]} 29. Rd5 {[%clk 0:00:59]}  Kc6 {[%clk 0:00:31]} 30. Rh5 {[%clk 0:00:58]}  Re7 {[%clk 0:00:31]} 31. c4 {[%clk 0:00:58]}  b5 {[%clk 0:00:29]} 32. Rh6+ {[%clk 0:00:58]}  Kc7 {[%clk 0:00:25]} 33. cxb5 {[%clk 0:00:58]}  c4 {[%clk 0:00:17]} 34. Kb2 {[%clk 0:00:59]}  Re5 {[%clk 0:00:17]} 35. a4 {[%clk 0:00:55]}  Re7 {[%clk 0:00:03]} 36. Kc3 {[%clk 0:00:54]} 1-0


[Site "https://www.chess.com"]

[Event "Titled Tuesday Blitz August 08 Early 2023"]
[White "Gontcharov, Vladislav"]
[Black "Mazurkiewicz, Michal"]
[WhiteFideId "4123492"]
[BlackFideId "1124943"]
[WhiteElo "2526"]
[BlackElo "2396"]
[Result "0-1"]
[Round "10"]
[TimeControl "180+1"]
[Date "2023.08.08"]
[WhiteClock "0:00:00"]
[BlackClock "0:00:43"]
[Board "102"]

1. d4 {[%clk 0:03:00]}  Nf6 {[%clk 0:03:00]} 2. c4 {[%clk 0:03:00]}  d6 {[%clk 0:03:00]} 3. Nc3 {[%clk 0:03:00]}  g6 {[%clk 0:03:01]} 4. Nf3 {[%clk 0:02:58]}  Bg7 {[%clk 0:03:01]} 5. Bg5 {[%clk 0:02:59]}  O-O {[%clk 0:03:01]} 6. e3 {[%clk 0:02:59]}  c5 {[%clk 0:03:00]} 7. Be2 {[%clk 0:02:57]}  Nc6 {[%clk 0:03:00]} 8. d5 {[%clk 0:02:51]}  Ne5 {[%clk 0:02:58]} 9. Nd2 {[%clk 0:02:38]}  h6 {[%clk 0:02:56]} 10. Bh4 {[%clk 0:02:38]}  g5 {[%clk 0:02:53]} 11. Bg3 {[%clk 0:02:38]}  Ng6 {[%clk 0:02:52]} 12. O-O {[%clk 0:02:32]}  e5 {[%clk 0:02:39]} 13. dxe6 {[%clk 0:02:26]}  Bxe6 {[%clk 0:02:39]} 14. Bf3 {[%clk 0:02:20]}  Rb8 {[%clk 0:02:31]} 15. Qc2 {[%clk 0:02:12]}  Ne5 {[%clk 0:02:30]} 16. Rad1 {[%clk 0:02:01]}  Nxf3+ {[%clk 0:02:28]} 17. gxf3 {[%clk 0:01:56]}  Nh5 {[%clk 0:02:25]} 18. Nde4 {[%clk 0:01:29]}  Nxg3 {[%clk 0:02:12]} 19. hxg3 {[%clk 0:01:28]}  Bxc4 {[%clk 0:02:12]} 20. Rfe1 {[%clk 0:01:26]}  Be6 {[%clk 0:01:54]} 21. Nxd6 {[%clk 0:01:22]}  Qa5 {[%clk 0:01:47]} 22. a3 {[%clk 0:01:03]}  b5 {[%clk 0:01:46]} 23. Nce4 {[%clk 0:00:54]}  Rfd8 {[%clk 0:01:15]} 24. Nxc5 {[%clk 0:00:47]}  Rxd6 {[%clk 0:01:13]} 25. Rxd6 {[%clk 0:00:35]}  Qxe1+ {[%clk 0:01:13]} 26. Kg2 {[%clk 0:00:35]}  Bc4 {[%clk 0:00:58]} 27. Ne4 {[%clk 0:00:21]}  Bf1+ {[%clk 0:00:44]} 28. Kh2 {[%clk 0:00:21]}  Be2 {[%clk 0:00:44]} 29. Nf6+ {[%clk 0:00:08]}  Bxf6 {[%clk 0:00:43]} 30. Rxf6 {[%clk 0:00:00]}  Qxf2+ {[%clk 0:00:43]} 0-1


[Site "https://www.chess.com"]

[Event "Titled Tuesday Blitz August 08 Early 2023"]
[White "Berezin, Viktor"]
[Black "Fominykh, Maria"]
[WhiteFideId "14107872"]
[BlackFideId "4142411"]
[WhiteElo "2521"]
[BlackElo "2302"]
[Result "1/2-1/2"]
[Round "10"]
[TimeControl "180+1"]
[Date "2023.08.08"]
[WhiteClock "0:00:08"]
[BlackClock "0:00:04"]
[Board "103"]

1. d4 {[%clk 0:02:55]}  Nf6 {[%clk 0:02:59]} 2. Nf3 {[%clk 0:02:51]}  g6 {[%clk 0:02:59]} 3. g3 {[%clk 0:02:49]}  Bg7 {[%clk 0:02:59]} 4. Bg2 {[%clk 0:02:50]}  O-O {[%clk 0:02:59]} 5. O-O {[%clk 0:02:50]}  d6 {[%clk 0:02:59]} 6. a4 {[%clk 0:02:50]}  c6 {[%clk 0:02:54]} 7. a5 {[%clk 0:02:48]}  Qc7 {[%clk 0:02:52]} 8. Nc3 {[%clk 0:02:46]}  e5 {[%clk 0:02:52]} 9. e4 {[%clk 0:02:39]}  Re8 {[%clk 0:02:49]} 10. h3 {[%clk 0:02:37]}  Na6 {[%clk 0:02:42]} 11. Re1 {[%clk 0:02:34]}  b6 {[%clk 0:02:29]} 12. d5 {[%clk 0:02:23]}  cxd5 {[%clk 0:02:11]} 13. exd5 {[%clk 0:02:15]}  bxa5 {[%clk 0:01:49]} 14. Be3 {[%clk 0:01:55]}  Rb8 {[%clk 0:01:40]} 15. Qc1 {[%clk 0:01:40]}  Nb4 {[%clk 0:01:36]} 16. Nd2 {[%clk 0:01:32]}  Bf5 {[%clk 0:01:28]} 17. Nde4 {[%clk 0:01:26]}  Bxe4 {[%clk 0:00:58]} 18. Nxe4 {[%clk 0:01:24]}  Nfxd5 {[%clk 0:00:51]} 19. Re2 {[%clk 0:00:25]}  Nxe3 {[%clk 0:00:48]} 20. fxe3 {[%clk 0:00:20]}  d5 {[%clk 0:00:41]} 21. Ng5 {[%clk 0:00:14]}  h6 {[%clk 0:00:34]} 22. Nf3 {[%clk 0:00:14]}  d4 {[%clk 0:00:31]} 23. c3 {[%clk 0:00:13]}  Nd3 {[%clk 0:00:29]} 24. Qd2 {[%clk 0:00:12]}  Nxb2 {[%clk 0:00:25]} 25. cxd4 {[%clk 0:00:11]}  Nc4 {[%clk 0:00:23]} 26. Qc3 {[%clk 0:00:11]}  exd4 {[%clk 0:00:23]} 27. Nxd4 {[%clk 0:00:11]}  Rbc8 {[%clk 0:00:16]} 28. Rc1 {[%clk 0:00:11]}  Qd7 {[%clk 0:00:14]} 29. Qe1 {[%clk 0:00:07]}  Nxe3 {[%clk 0:00:13]} 30. Rxc8 {[%clk 0:00:07]}  Qxc8 {[%clk 0:00:13]} 31. Nf3 {[%clk 0:00:06]}  Qc5 {[%clk 0:00:12]} 32. Kh2 {[%clk 0:00:06]}  Re6 {[%clk 0:00:12]} 33. Bh1 {[%clk 0:00:05]}  a4 {[%clk 0:00:09]} 34. Qb1 {[%clk 0:00:05]}  Kh7 {[%clk 0:00:08]} 35. Nh4 {[%clk 0:00:05]}  a3 {[%clk 0:00:08]} 36. Qa2 {[%clk 0:00:05]}  Qd6 {[%clk 0:00:06]} 37. Bf3 {[%clk 0:00:05]}  Nf1+ {[%clk 0:00:05]} 38. Kg1 {[%clk 0:00:05]}  Nxg3 {[%clk 0:00:05]} 39. Rd2 {[%clk 0:00:05]}  Qc5+ {[%clk 0:00:04]} 40. Kg2 {[%clk 0:00:05]}  Nf5 {[%clk 0:00:03]} 41. Nxf5 {[%clk 0:00:04]}  Qxf5 {[%clk 0:00:03]} 42. Bg4 {[%clk 0:00:05]}  Qg5 {[%clk 0:00:03]} 43. Kh2 {[%clk 0:00:05]}  Rf6 {[%clk 0:00:02]} 44. Rg2 {[%clk 0:00:04]}  Qe5+ {[%clk 0:00:02]} 45. Kg1 {[%clk 0:00:04]}  Qd4+ {[%clk 0:00:02]} 46. Kh2 {[%clk 0:00:05]}  Qd6+ {[%clk 0:00:02]} 47. Kg1 {[%clk 0:00:05]}  Qc5+ {[%clk 0:00:02]} 48. Kh2 {[%clk 0:00:06]}  Rf4 {[%clk 0:00:01]} 49. Qb3 {[%clk 0:00:05]}  Be5 {[%clk 0:00:01]} 50. Rg3 {[%clk 0:00:05]}  Rf3 {[%clk 0:00:02]} 51. Qxf3 {[%clk 0:00:05]}  Bxg3+ {[%clk 0:00:02]} 52. Kxg3 {[%clk 0:00:05]}  Qe5+ {[%clk 0:00:02]} 53. Kg2 {[%clk 0:00:05]}  Qb2+ {[%clk 0:00:02]} 54. Kg3 {[%clk 0:00:06]}  a2 {[%clk 0:00:02]} 55. Qxf7+ {[%clk 0:00:06]}  Kh8 {[%clk 0:00:02]} 56. Qe8+ {[%clk 0:00:06]}  Kh7 {[%clk 0:00:03]} 57. Qd7+ {[%clk 0:00:07]}  Kh8 {[%clk 0:00:03]} 58. Qe8+ {[%clk 0:00:07]}  Kh7 {[%clk 0:00:03]} 59. Qf7+ {[%clk 0:00:07]}  Kh8 {[%clk 0:00:03]} 60. Qf8+ {[%clk 0:00:08]}  Kh7 {[%clk 0:00:04]} 61. Qf7+ {[%clk 0:00:08]} 1/2-1/2


[Site "https://www.chess.com"]

[Event "Titled Tuesday Blitz August 08 Early 2023"]
[White "Preobrazhenska_D2011"]
[Black "Palczert, Matyas"]
[BlackFideId "784958"]
[WhiteElo "2297"]
[BlackElo "2520"]
[Result "0-1"]
[Round "10"]
[TimeControl "180+1"]
[Date "2023.08.08"]
[WhiteClock "0:00:01"]
[BlackClock "0:00:01"]
[Board "105"]

1. e4 {[%clk 0:03:00]}  c5 {[%clk 0:02:59]} 2. Nf3 {[%clk 0:03:00]}  e6 {[%clk 0:02:58]} 3. g3 {[%clk 0:02:59]}  Nc6 {[%clk 0:02:56]} 4. Bg2 {[%clk 0:02:58]}  Nf6 {[%clk 0:02:57]} 5. Qe2 {[%clk 0:02:58]}  e5 {[%clk 0:02:57]} 6. c3 {[%clk 0:02:58]}  d6 {[%clk 0:02:51]} 7. O-O {[%clk 0:02:56]}  Be7 {[%clk 0:02:51]} 8. Rd1 {[%clk 0:02:55]}  O-O {[%clk 0:02:51]} 9. d3 {[%clk 0:02:54]}  h6 {[%clk 0:02:48]} 10. Nbd2 {[%clk 0:02:53]}  Re8 {[%clk 0:02:48]} 11. Nf1 {[%clk 0:02:53]}  Bf8 {[%clk 0:02:47]} 12. Ne3 {[%clk 0:02:53]}  d5 {[%clk 0:02:42]} 13. exd5 {[%clk 0:02:51]}  Nxd5 {[%clk 0:02:43]} 14. Nxd5 {[%clk 0:02:50]}  Qxd5 {[%clk 0:02:42]} 15. Ng5 {[%clk 0:02:43]}  Qd8 {[%clk 0:02:15]} 16. Ne4 {[%clk 0:02:40]}  f5 {[%clk 0:02:12]} 17. Nd2 {[%clk 0:02:40]}  Be6 {[%clk 0:02:04]} 18. Nc4 {[%clk 0:02:34]}  Bd5 {[%clk 0:02:00]} 19. f3 {[%clk 0:02:13]}  b5 {[%clk 0:01:35]} 20. Ne3 {[%clk 0:02:11]}  f4 {[%clk 0:01:34]} 21. Nxd5 {[%clk 0:01:47]}  Qxd5 {[%clk 0:01:35]} 22. Qe4 {[%clk 0:01:45]}  Qxe4 {[%clk 0:01:22]} 23. fxe4 {[%clk 0:01:44]}  g5 {[%clk 0:01:20]} 24. Kf2 {[%clk 0:01:41]}  Rad8 {[%clk 0:01:19]} 25. Bf3 {[%clk 0:01:37]}  c4 {[%clk 0:01:17]} 26. dxc4 {[%clk 0:01:35]}  Bc5+ {[%clk 0:01:16]} 27. Kg2 {[%clk 0:01:30]}  Rxd1 {[%clk 0:00:57]} 28. Bxd1 {[%clk 0:01:30]}  Rd8 {[%clk 0:00:57]} 29. Be2 {[%clk 0:01:25]}  b4 {[%clk 0:00:57]} 30. g4 {[%clk 0:00:57]}  Bb6 {[%clk 0:00:32]} 31. cxb4 {[%clk 0:00:46]}  Nxb4 {[%clk 0:00:33]} 32. a3 {[%clk 0:00:45]}  Nc2 {[%clk 0:00:30]} 33. Rb1 {[%clk 0:00:45]}  Nd4 {[%clk 0:00:16]} 34. Bd1 {[%clk 0:00:20]}  Ne6 {[%clk 0:00:15]} 35. Bf3 {[%clk 0:00:17]}  Rd3 {[%clk 0:00:13]} 36. Be2 {[%clk 0:00:14]}  Rb3 {[%clk 0:00:12]} 37. Bd1 {[%clk 0:00:13]}  Rd3 {[%clk 0:00:12]} 38. Bc2 {[%clk 0:00:13]}  f3+ {[%clk 0:00:11]} 39. Kf1 {[%clk 0:00:13]}  Rd8 {[%clk 0:00:08]} 40. b3 {[%clk 0:00:10]}  Nf4 {[%clk 0:00:04]} 41. Bxf4 {[%clk 0:00:10]}  gxf4 {[%clk 0:00:02]} 42. Rd1 {[%clk 0:00:09]}  Bd4 {[%clk 0:00:03]} 43. Rd3 {[%clk 0:00:08]}  f2 {[%clk 0:00:03]} 44. b4 {[%clk 0:00:08]}  Kf7 {[%clk 0:00:02]} 45. c5 {[%clk 0:00:07]}  Kg6 {[%clk 0:00:02]} 46. c6 {[%clk 0:00:06]}  a6 {[%clk 0:00:02]} 47. a4 {[%clk 0:00:05]}  Rb8 {[%clk 0:00:02]} 48. Rb3 {[%clk 0:00:04]}  Rc8 {[%clk 0:00:01]} 49. b5 {[%clk 0:00:04]}  Kg5 {[%clk 0:00:02]} 50. Bd3 {[%clk 0:00:03]}  axb5 {[%clk 0:00:02]} 51. axb5 {[%clk 0:00:03]}  Ra8 {[%clk 0:00:02]} 52. Rb1 {[%clk 0:00:03]}  Ra3 {[%clk 0:00:02]} 53. c7 {[%clk 0:00:03]}  Rc3 {[%clk 0:00:02]} 54. b6 {[%clk 0:00:03]}  Bxb6 {[%clk 0:00:01]} 55. Rxb6 {[%clk 0:00:03]}  Rxc7 {[%clk 0:00:01]} 56. Rb1 {[%clk 0:00:02]}  Kxg4 {[%clk 0:00:01]} 57. Kxf2 {[%clk 0:00:02]}  Rc3 {[%clk 0:00:02]} 58. Rg1+ {[%clk 0:00:03]}  Kh3 {[%clk 0:00:02]} 59. Bf1+ {[%clk 0:00:03]}  Kxh2 {[%clk 0:00:02]} 60. Rg2+ {[%clk 0:00:03]}  Kh1 {[%clk 0:00:01]} 61. Rg6 {[%clk 0:00:03]}  Rc2+ {[%clk 0:00:01]} 62. Kf3 {[%clk 0:00:02]}  h5 {[%clk 0:00:01]} 63. Rh6 {[%clk 0:00:02]}  Kg1 {[%clk 0:00:01]} 64. Bd3 {[%clk 0:00:01]}  Rf2# {[%clk 0:00:01]} 0-1


[Site "https://www.chess.com"]

[Event "Titled Tuesday Blitz August 08 Early 2023"]
[White "Agibileg, Uurtsaikh"]
[Black "Dishman, Stephen"]
[WhiteFideId "4901606"]
[BlackFideId "403024"]
[WhiteElo "2651"]
[BlackElo "2400"]
[Result "1-0"]
[Round "10"]
[TimeControl "180+1"]
[Date "2023.08.08"]
[WhiteClock "0:02:45"]
[BlackClock "0:00:08"]
[Board "107"]

1. d4 {[%clk 0:03:00]}  d5 {[%clk 0:02:59]} 2. c4 {[%clk 0:03:00]}  c6 {[%clk 0:02:59]} 3. Nf3 {[%clk 0:03:00]}  Nf6 {[%clk 0:02:59]} 4. Nc3 {[%clk 0:03:00]}  dxc4 {[%clk 0:02:58]} 5. a4 {[%clk 0:02:59]}  Bf5 {[%clk 0:02:58]} 6. g3 {[%clk 0:02:59]}  e6 {[%clk 0:02:49]} 7. Bg2 {[%clk 0:02:58]}  Bb4 {[%clk 0:02:42]} 8. Ne5 {[%clk 0:02:58]}  Ne4 {[%clk 0:02:25]} 9. O-O {[%clk 0:02:57]}  Nxc3 {[%clk 0:02:13]} 10. bxc3 {[%clk 0:02:57]}  Bxc3 {[%clk 0:02:13]} 11. Ba3 {[%clk 0:02:57]}  Bxa1 {[%clk 0:02:08]} 12. Qxa1 {[%clk 0:02:55]}  f6 {[%clk 0:01:45]} 13. Nxc4 {[%clk 0:02:54]}  Qd7 {[%clk 0:01:19]} 14. Qb2 {[%clk 0:02:51]}  b6 {[%clk 0:01:12]} 15. Rc1 {[%clk 0:02:46]}  Kf7 {[%clk 0:01:09]} 16. Nd6+ {[%clk 0:02:46]}  Kg8 {[%clk 0:00:59]} 17. Nxf5 {[%clk 0:02:45]}  exf5 {[%clk 0:00:58]} 18. Qb3+ {[%clk 0:02:45]}  Qf7 {[%clk 0:00:52]} 19. Bd5 {[%clk 0:02:46]}  Qxd5 {[%clk 0:00:42]} 20. Qxd5+ {[%clk 0:02:46]}  cxd5 {[%clk 0:00:42]} 21. Rc8+ {[%clk 0:02:47]}  Kf7 {[%clk 0:00:42]} 22. Rxh8 {[%clk 0:02:48]}  a6 {[%clk 0:00:19]} 23. Bd6 {[%clk 0:02:46]}  b5 {[%clk 0:00:19]} 24. axb5 {[%clk 0:02:41]}  axb5 {[%clk 0:00:19]} 25. Rxb8 {[%clk 0:02:42]}  Rxb8 {[%clk 0:00:17]} 26. Bxb8 {[%clk 0:02:43]}  b4 {[%clk 0:00:17]} 27. Bd6 {[%clk 0:02:43]}  b3 {[%clk 0:00:17]} 28. Ba3 {[%clk 0:02:43]}  g5 {[%clk 0:00:15]} 29. Kf1 {[%clk 0:02:43]}  Ke6 {[%clk 0:00:15]} 30. Ke1 {[%clk 0:02:43]}  f4 {[%clk 0:00:15]} 31. g4 {[%clk 0:02:43]}  f5 {[%clk 0:00:15]} 32. f3 {[%clk 0:02:43]}  fxg4 {[%clk 0:00:14]} 33. fxg4 {[%clk 0:02:44]}  Kf6 {[%clk 0:00:12]} 34. Kd2 {[%clk 0:02:44]}  Kg6 {[%clk 0:00:12]} 35. Kc3 {[%clk 0:02:44]}  h5 {[%clk 0:00:12]} 36. h3 {[%clk 0:02:44]}  hxg4 {[%clk 0:00:08]} 37. hxg4 {[%clk 0:02:45]} 1-0


[Site "https://www.chess.com"]